fUST/lending_fUST_20250707
["ID","MTS","AMOUNT","RATE_DAILY","PERIOD"]
[370095484,1751878322961,-460.0,0.00021353,2]
[370095485,1751878322970,-476.17551655,0.00021353,2]
[370095486,1751878322980,-515.18,0.00021353,2]
[370095487,1751878322991,-463.45,0.00021353,2]
[370095488,1751878323000,-569.19,0.00021353,2]
[370095489,1751878323010,-534.25,0.00021353,2]
[370095490,1751878323020,-474.81,0.00021353,2]
[370095491,1751878323030,-590.63,0.00021353,2]
[370095492,1751878323040,-517.21,0.00021353,2]
[370095493,1751878323049,-600.59,0.00021353,2]
[370095494,1751878323059,-460.14,0.00021353,2]
[370095495,1751878323070,-460.0,0.00021353,2]
[370095496,1751878323080,-460.0,0.00021353,2]
[370095497,1751878323089,-460.0,0.00021353,2]
[370095498,1751878323099,-503.25,0.00021353,2]
[370095499,1751878323110,-1790.38,0.00021353,2]
[370095500,1751878323119,-460.0,0.00021353,2]
[370095501,1751878323130,-1020.84,0.00021353,2]
[370095502,1751878323140,-628.75,0.00021353,2]
[370095503,1751878323150,-724.26,0.00021353,2]
[370095504,1751878323160,-599.29,0.00021353,2]
[370095505,1751878323169,-618.64,0.00021353,2]
[370095506,1751878323180,-736.7,0.00021353,2]
[370095507,1751878323190,-513.26,0.00021353,2]
[370095508,1751878323200,-2101.7,0.00021353,2]
[370095509,1751878323210,-701.27,0.00021353,2]
[370095510,1751878323220,-501.61,0.00021353,2]
[370095511,1751878323230,-621.18,0.00021353,2]
[370095512,1751878323241,-460.0,0.00021353,2]
[370095513,1751878323251,-188.49941857,0.00021353,2]
[370095514,1751878323261,-606.51054467,0.00021353,2]
[370095515,1751878323271,-1588.08,0.00021353,2]
[370095516,1751878323281,-460.0,0.00021353,2]
[370095517,1751878323291,-1502.2,0.00021353,2]
[370095518,1751878323301,-603.3,0.00021353,2]
[370095519,1751878323311,-645.22,0.00021353,2]
[370095520,1751878323321,-460.0,0.00021353,2]
[370095521,1751878323331,-460.0,0.00021353,2]
[370095522,1751878323341,-460.0,0.00021353,2]
[370095523,1751878323351,-802.16,0.00021353,2]
[370095524,1751878323361,-460.0,0.00021353,2]
[370095525,1751878323372,-582.95,0.00021353,2]
[370095526,1751878323382,-460.0,0.00021353,2]
[370095527,1751878323392,-461.06,0.00021353,2]
[370095528,1751878323402,-518.66,0.00021353,2]
[370095529,1751878323412,-882.2,0.00021353,2]
[370095530,1751878323423,-460.0,0.00021353,2]
[370095531,1751878323433,-460.0,0.00021353,2]
[370095532,1751878323443,-466.33,0.00021353,2]
[370095533,1751878323455,-811.29,0.00021353,2]
[370095534,1751878323465,-174.567543,0.00021353,2]
[370095535,1751878323475,-575.59,0.00021355,2]
[370095536,1751878323486,-460.0,0.00021355,2]
[370095537,1751878323496,-245.61496019,0.00021357,2]
[370095538,1751878323506,-189.64653,0.00021357,2]
[370095539,1751878323517,-189.64653,0.00021357,2]
[370095540,1751878323528,-211.911253,0.00021357,2]
[370095541,1751878323538,-211.911253,0.00021357,2]
[370095542,1751878323548,-277.861526,0.00021358,2]
[370095543,1751878323558,-277.861526,0.00021358,2]
[370095544,1751878323568,-211.885957,0.00021358,2]
[370095545,1751878323578,-211.885957,0.00021358,2]
[370095546,1751878323590,-203.424781,0.00021358,2]
[370095547,1751878323599,-203.424781,0.00021358,2]
[370095548,1751878323609,-172.762535,0.00021358,2]
[370095549,1751878323619,-172.762535,0.00021358,2]
[370095550,1751878323628,-229.00591698,0.00021358,2]
[370095551,1751878323638,-460.0,0.00021358,2]
[370095552,1751878323647,-579.14,0.00021358,2]
[370095553,1751878323657,-460.0,0.00021358,2]
[370095554,1751878323667,-1820.82,0.00021358,2]
[370095555,1751878323677,-460.0,0.00021358,2]
[370095556,1751878323686,-460.0,0.00021358,2]
[370095557,1751878323696,-697.17,0.00021358,2]
[370095558,1751878323707,-460.0,0.00021358,2]
[370095559,1751878323717,-584.48,0.00021358,2]
[370095560,1751878323727,-686.19,0.00021358,2]
[370095561,1751878323738,-460.0,0.00021358,2]
[370095562,1751878323749,-891.26,0.00021358,2]
[370095563,1751878323759,-597.07,0.00021358,2]
[370095564,1751878323769,-460.0,0.00021358,2]
[370095565,1751878323778,-511.02,0.00021358,2]
[370095566,1751878323789,-461.69,0.00021358,2]
[370095567,1751878323799,-460.0,0.00021358,2]
[370095568,1751878323808,-619.38126361,0.00021364,2]
[370095569,1751878323818,-1051.79538731,0.00021364,2]
[370095570,1751878323832,-1704.19960586,0.00021364,2]
[370095571,1751878323842,-25000.0,0.00021383,2]
[370095572,1751878323853,-5000.0,0.00021383,2]
[370095573,1751878323863,-299.0,0.00021386,4]
[370095574,1751878323874,-2510.43596752,0.00021408,2]
[370095575,1751878323884,-503.491747,0.00021459,2]
[370095576,1751878323894,-503.491747,0.00021459,2]
[370095577,1751878323904,-302.740728,0.00021459,2]
[370095578,1751878323915,-302.740728,0.00021459,2]
[370095579,1751878323925,-281.991641,0.00021459,2]
[370095580,1751878323934,-857.698891,0.00021459,2]
[370095581,1751878323944,-857.698891,0.00021459,2]
[370095582,1751878323954,-2219.2239418,0.00021498,2]
[370095583,1751878323964,-10113.90661789,0.000215,2]
[370095584,1751878323974,-634.64,0.00021518,2]
[370095585,1751878323984,-578.27,0.00021518,2]
[370095586,1751878323995,-714.52,0.00021518,2]
[370095587,1751878324005,-3372.58,0.00021518,2]
[370095588,1751878324015,-557.47,0.00021518,2]
[370095589,1751878324024,-476.15,0.00021518,2]
[370095590,1751878324034,-460.0,0.00021522,2]
[370095591,1751878324046,-5018.54,0.00021522,2]
[370095592,1751878324056,-473.43,0.00021522,2]
[370095593,1751878324067,-877.49,0.00021522,2]
[370095594,1751878324077,-978.43,0.00021522,2]
[370095595,1751878324088,-392.39,0.00021522,2]
[370095596,1751878324098,-460.0,0.00021522,2]
[370095597,1751878324109,-4865.84,0.00021522,2]
[370095598,1751878324120,-8429.87,0.00021522,2]
[370095599,1751878324129,-1078.12,0.00021522,2]
[370095600,1751878324139,-323.34,0.00021522,2]
[370095601,1751878324148,-814.88,0.00021522,2]
[370095602,1751878324158,-1523.08,0.00021522,2]
[370095603,1751878324169,-460.0,0.00021522,2]
[370095604,1751878324178,-758.47,0.00021523,2]
[370095605,1751878324188,-460.0,0.00021523,2]
[370095606,1751878324198,-460.0,0.00021523,2]
[370095607,1751878324209,-648.63,0.00021523,2]
[370095608,1751878324219,-4741.33,0.00021523,2]
[370095609,1751878324229,-815.67,0.00021523,2]
[370095610,1751878324238,-4342.85,0.00021523,2]
[370095611,1751878324249,-1322.28,0.00021523,2]
[370095612,1751878324258,-541.05,0.00021524,2]
[370095613,1751878324268,-978.47,0.00021524,2]
[370095614,1751878324279,-1929.95,0.00021524,2]
[370095615,1751878324289,-479.04,0.00021524,2]
[370095616,1751878324299,-460.0,0.00021524,2]
[370095617,1751878324309,-961.6,0.00021524,2]
[370095618,1751878324320,-1232.5,0.00021524,2]
[370095619,1751878324329,-2371.65,0.00021524,2]
[370095620,1751878324340,-1116.74,0.00021524,2]
[370095621,1751878324350,-4190.5,0.00021524,2]
[370095622,1751878324360,-358.52053194,0.00021524,2]
[370095623,1751878324370,-460.0,0.00021526,2]
[370095624,1751878324380,-504.54,0.00021526,2]
[370095625,1751878324390,-460.0,0.00021526,2]
[370095626,1751878324399,-543.69112837,0.00021526,2]
[370095627,1751878324409,-813.31,0.00021526,2]
[370095628,1751878324419,-460.0,0.00021526,2]
[370095629,1751878324429,-696.66,0.00021526,2]
[370095630,1751878324438,-460.0,0.00021526,2]
[370095631,1751878324449,-460.0,0.00021526,2]
[370095632,1751878324459,-642.4,0.00021526,2]
[370095633,1751878324469,-989.64,0.00021526,2]
[370095634,1751878324479,-591.78,0.00021526,2]
[370095635,1751878324489,-460.0,0.00021526,2]
[370095636,1751878324499,-549.97,0.00021526,2]
[370095637,1751878324508,-273.42660531,0.00021526,2]
[370095638,1751878324518,-668.91,0.00021526,2]
[370095639,1751878324528,-1175.75,0.00021526,2]
[370095640,1751878324538,-460.0,0.00021526,2]
[370095641,1751878324548,-575.32,0.00021526,2]
[370095642,1751878324558,-501.04,0.00021526,2]
[370095643,1751878324567,-460.0,0.00021526,2]
[370095644,1751878324577,-460.0,0.00021526,2]
[370095645,1751878324587,-460.0,0.00021526,2]
[370095646,1751878324597,-460.0,0.00021526,2]
[370095647,1751878324607,-1816.74,0.00021526,2]
[370095648,1751878324617,-460.0,0.00021526,2]
[370095649,1751878324627,-627.71,0.00021526,2]
[370095650,1751878324637,-1190.73,0.00021526,2]
[370095651,1751878324647,-460.0,0.00021526,2]
[370095652,1751878324656,-1436.76,0.00021526,2]
[370095653,1751878324666,-460.0,0.00021526,2]
[370095654,1751878324676,-744.3,0.00021526,2]
[370095655,1751878324686,-1626.87,0.00021527,2]
[370095656,1751878324695,-1041.83,0.00021527,2]
[370095657,1751878324704,-460.0,0.00021527,2]
[370095658,1751878324714,-1219.94,0.00021527,2]
[370095659,1751878324723,-11783.72,0.00021527,2]
[370095660,1751878324732,-516.28,0.00021527,2]
[370095661,1751878324742,-1126.4,0.00021527,2]
[370095662,1751878324752,-3083.89,0.00021527,2]
[370095663,1751878324761,-746.91,0.00021527,2]
[370095664,1751878324771,-460.0,0.00021527,2]
[370095665,1751878324780,-1051.67,0.00021527,2]
[370095666,1751878324789,-500.0,0.00021527,2]
[370095667,1751878324799,-1680.07552712,0.00021555,5]
[370095668,1751878324809,-2151.2706962,0.00021564,2]
[370095669,1751878324818,-500.0,0.00021564,2]
[370095670,1751878324832,-3000.0,0.00021564,2]
[370095671,1751878324842,-1014.8908958,0.00021564,2]
[370095672,1751878324852,-2500.0,0.00021564,2]
[370095673,1751878324862,-1979.05060422,0.00021564,2]
[370095674,1751878324872,-501.15663313,0.00021564,2]
[370095675,1751878324882,-150.0,0.00021589,2]
[370095676,1751878324897,-467.28,0.00021626,2]
[370095677,1751878324907,-1466.61,0.00021626,2]
[370095678,1751878324916,-1693.65,0.00021626,2]
[370095679,1751878324926,-511.73,0.00021626,2]
[370095680,1751878324935,-5131.36,0.00021626,2]
[370095681,1751878324945,-927.78,0.00021626,2]
[370095682,1751878324955,-2375.1,0.00021626,2]
[370095683,1751878324964,-4148.36,0.00021626,2]
[370095684,1751878324975,-460.0,0.00021626,2]
[370095685,1751878324985,-1006.41,0.00021626,2]
[370095686,1751878324994,-9521.95,0.00021626,2]
[370095687,1751878325004,-2677.89,0.00021626,2]
[370095688,1751878325014,-927.92,0.00021626,2]
[370095689,1751878325027,-460.0,0.00021627,2]
[370095690,1751878325036,-585.88,0.00021627,2]
[370095691,1751878325045,-652.73,0.00021627,2]
[370095692,1751878325055,-460.0,0.00021627,2]
[370095693,1751878325065,-460.0,0.00021627,2]
[370095694,1751878325075,-202.08980861,0.00021627,2]
[370095695,1751878325084,-590.05,0.00021627,2]
[370095696,1751878325093,-642.41,0.00021627,2]
[370095697,1751878325103,-460.0,0.00021627,2]
[370095698,1751878325112,-1814.25,0.00021627,2]
[370095699,1751878325122,-780.98,0.00021627,2]
[370095700,1751878325131,-243.53,0.00021627,2]
[370095701,1751878325140,-739.46,0.00021627,2]
[370095702,1751878325150,-1473.58,0.00021627,2]
[370095703,1751878325160,-460.0,0.00021627,2]
[370095704,1751878325169,-537.97,0.00021627,2]
[370095705,1751878325179,-474.52,0.00021627,2]
[370095706,1751878325188,-461.36,0.00021627,2]
[370095707,1751878325198,-515.18,0.00021627,2]
[370095708,1751878325208,-463.45,0.00021627,2]
[370095709,1751878325217,-569.19,0.00021627,2]
[370095710,1751878325226,-474.81,0.00021627,2]
[370095711,1751878325236,-590.63,0.00021627,2]
[370095712,1751878325245,-517.21,0.00021627,2]
[370095713,1751878325255,-600.59,0.00021627,2]
[370095714,1751878325265,-460.14,0.00021627,2]
[370095715,1751878325275,-460.0,0.00021627,2]
[370095716,1751878325286,-321.95831116,0.00021627,2]
[370095717,1751878325295,-460.0,0.00021627,2]
[370095718,1751878325380,-503.25,0.00021627,2]
[370095719,1751878325391,-1790.38,0.00021627,2]
[370095720,1751878325402,-460.0,0.00021627,2]
[370095721,1751878325413,-1020.84,0.00021627,2]
[370095722,1751878325423,-628.75,0.00021627,2]
[370095723,1751878325433,-724.26,0.00021627,2]
[370095724,1751878325443,-599.29,0.00021627,2]
[370095725,1751878325453,-618.64,0.00021627,2]
[370095726,1751878325464,-736.7,0.00021627,2]
[370095727,1751878325474,-513.26,0.00021627,2]
[370095728,1751878325486,-2101.7,0.00021627,2]
[370095729,1751878325499,-701.27,0.00021627,2]
[370095730,1751878325508,-501.61,0.00021627,2]
[370095731,1751878325520,-621.18,0.00021627,2]
[370095732,1751878325530,-460.0,0.00021627,2]
[370095733,1751878325540,-1588.08,0.00021627,2]
[370095734,1751878325549,-460.0,0.00021627,2]
[370095735,1751878325559,-1502.2,0.00021627,2]
[370095736,1751878325569,-603.3,0.00021627,2]
[370095737,1751878325578,-645.22,0.00021627,2]
[370095738,1751878325589,-460.0,0.00021627,2]
[370095739,1751878325599,-188.29,0.00021627,2]
[370095740,1751878325611,-460.0,0.00021627,2]
[370095741,1751878325621,-802.16,0.00021627,2]
[370095742,1751878325634,-460.0,0.00021627,2]
[370095743,1751878325644,-582.95,0.00021627,2]
[370095744,1751878325655,-460.0,0.00021627,2]
[370095745,1751878325666,-518.66,0.00021627,2]
[370095746,1751878325677,-461.06,0.00021627,2]
[370095747,1751878325688,-882.2,0.00021627,2]
[370095748,1751878325698,-460.0,0.00021627,2]
[370095749,1751878325708,-460.0,0.00021627,2]
[370095750,1751878325718,-466.33,0.00021627,2]
[370095751,1751878325728,-811.29,0.00021627,2]
[370095752,1751878325739,-575.59,0.00021629,2]
[370095753,1751878325748,-241.98647851,0.00021629,2]
[370095754,1751878325757,-151.0,0.0002163,2]
[370095755,1751878325767,-272.50166,0.0002163,2]
[370095756,1751878325777,-272.50166,0.0002163,2]
[370095757,1751878325788,-160.955765,0.0002163,2]
[370095758,1751878325797,-160.955772,0.0002163,2]
[370095759,1751878325807,-1240.905189,0.0002163,2]
[370095760,1751878325819,-1240.90518,0.0002163,2]
[370095761,1751878325832,-151.0,0.00021631,2]
[370095762,1751878325841,-151.0,0.00021631,2]
[370095763,1751878325850,-3702.021644,0.00021631,2]
[370095764,1751878325859,-3702.021644,0.00021631,2]
[370095765,1751878325870,-151.0,0.00021632,2]
[370095766,1751878325879,-460.0,0.00021632,2]
[370095767,1751878325888,-579.14,0.00021632,2]
[370095768,1751878325899,-151.0,0.00021632,2]
[370095769,1751878325910,-251.765691,0.00021632,2]
[370095770,1751878325919,-251.765691,0.00021632,2]
[370095771,1751878325929,-773.469148,0.00021632,2]
[370095772,1751878325939,-1152.046431,0.00021632,2]
[370095773,1751878325948,-773.469148,0.00021632,2]
[370095774,1751878325958,-1152.046431,0.00021632,2]
[370095775,1751878325967,-151.0,0.00021632,2]
[370095776,1751878325977,-460.0,0.00021632,2]
[370095777,1751878325986,-1820.82,0.00021632,2]
[370095778,1751878325995,-670.12472,0.00021632,2]
[370095779,1751878326005,-670.12472,0.00021632,2]
[370095780,1751878326014,-460.0,0.00021632,2]
[370095781,1751878326023,-460.0,0.00021632,2]
[370095782,1751878326033,-697.17,0.00021632,2]
[370095783,1751878326044,-549.339809,0.00021632,2]
[370095784,1751878326053,-549.339809,0.00021632,2]
[370095785,1751878326062,-460.0,0.00021632,2]
[370095786,1751878326073,-584.48,0.00021632,2]
[370095787,1751878326083,-686.19,0.00021632,2]
[370095788,1751878326092,-460.0,0.00021632,2]
[370095789,1751878326102,-891.26,0.00021632,2]
[370095790,1751878326111,-320.333785,0.00021632,2]
[370095791,1751878326121,-320.333785,0.00021632,2]
[370095792,1751878326131,-597.07,0.00021632,2]
[370095793,1751878326140,-460.0,0.00021632,2]
[370095794,1751878326149,-511.02,0.00021632,2]
[370095795,1751878326159,-461.69,0.00021632,2]
[370095796,1751878326168,-460.0,0.00021632,2]
[370095797,1751878326177,-166.455343,0.00021632,2]
[370095798,1751878326187,-166.455347,0.00021632,2]
[370095799,1751878326196,-823.0,0.00021636,2]
[370095800,1751878326205,-4078.32,0.000217,2]
[370095801,1751878326215,-183.701271,0.00021732,2]
[370095802,1751878326224,-151.0,0.00021732,2]
[370095803,1751878326233,-234.572647,0.00021732,2]
[370095804,1751878326242,-234.572647,0.00021732,2]
[370095805,1751878326251,-185.862515,0.00021732,2]
[370095806,1751878326261,-185.862515,0.00021732,2]
[370095807,1751878326270,-535.243736,0.00021732,2]
[370095808,1751878326280,-535.243736,0.00021732,2]
[370095809,1751878326289,-211.563781,0.00021733,2]
[370095810,1751878326298,-211.563781,0.00021733,2]
[370095811,1751878326308,-151.0,0.00021733,2]
[370095812,1751878326317,-151.0,0.00021733,2]
[370095813,1751878326327,-299.0,0.00021747,5]
[370095814,1751878326337,-634.64,0.00021792,2]
[370095815,1751878326347,-578.27,0.00021792,2]
[370095816,1751878326358,-714.52,0.00021792,2]
[370095817,1751878326367,-3372.58,0.00021792,2]
[370095818,1751878326377,-557.47,0.00021792,2]
[370095819,1751878326386,-476.15,0.00021792,2]
[370095820,1751878326396,-460.0,0.00021796,2]
[370095821,1751878326407,-5018.54,0.00021796,2]
[370095822,1751878326416,-473.43,0.00021796,2]
[370095823,1751878326426,-877.49,0.00021796,2]
[370095824,1751878326435,-978.43,0.00021796,2]
[370095825,1751878326446,-558.29,0.00021796,2]
[370095826,1751878326456,-4865.84,0.00021796,2]
[370095827,1751878326466,-8429.87,0.00021796,2]
[370095828,1751878326476,-1078.12,0.00021796,2]
[370095829,1751878326486,-814.88,0.00021796,2]
[370095830,1751878326496,-1523.08,0.00021796,2]
[370095831,1751878326505,-460.0,0.00021796,2]
[370095832,1751878326515,-758.47,0.00021797,2]
[370095833,1751878326525,-460.0,0.00021797,2]
[370095834,1751878326535,-460.0,0.00021797,2]
[370095835,1751878326545,-648.63,0.00021797,2]
[370095836,1751878326555,-4741.33,0.00021797,2]
[370095837,1751878326564,-815.67,0.00021797,2]
[370095838,1751878326573,-4342.85,0.00021797,2]
[370095839,1751878326583,-1322.28,0.00021797,2]
[370095840,1751878326593,-978.47,0.00021798,2]
[370095841,1751878326602,-1929.95,0.00021798,2]
[370095842,1751878326612,-479.04,0.00021798,2]
[370095843,1751878326633,-460.0,0.00021798,2]
[370095844,1751878326644,-961.6,0.00021798,2]
[370095845,1751878326654,-1232.5,0.00021798,2]
[370095846,1751878326663,-2371.65,0.00021798,2]
[370095847,1751878326674,-1116.74,0.00021798,2]
[370095848,1751878326683,-4190.5,0.00021798,2]
[370095849,1751878326693,-311.28668033,0.000218,2]
[370095850,1751878326702,-504.54,0.000218,2]
[370095851,1751878326713,-460.0,0.000218,2]
[370095852,1751878326722,-813.31,0.000218,2]
[370095853,1751878326732,-460.0,0.000218,2]
[370095854,1751878326741,-696.66,0.000218,2]
[370095855,1751878326751,-460.0,0.000218,2]
[370095856,1751878326761,-642.4,0.000218,2]
[370095857,1751878326770,-989.64,0.000218,2]
[370095858,1751878326780,-591.78,0.000218,2]
[370095859,1751878326790,-460.0,0.000218,2]
[370095860,1751878326799,-549.97,0.000218,2]
[370095861,1751878326809,-668.91,0.000218,2]
[370095862,1751878326819,-1175.75,0.000218,2]
[370095863,1751878326831,-460.0,0.000218,2]
[370095864,1751878326841,-575.32,0.000218,2]
[370095865,1751878326851,-501.04,0.000218,2]
[370095866,1751878326860,-460.0,0.000218,2]
[370095867,1751878326870,-460.0,0.000218,2]
[370095868,1751878326880,-460.0,0.000218,2]
[370095869,1751878326889,-1816.74,0.000218,2]
[370095870,1751878326899,-517.05,0.000218,2]
[370095871,1751878326909,-627.71,0.000218,2]
[370095872,1751878326919,-1190.73,0.000218,2]
[370095873,1751878326928,-460.0,0.000218,2]
[370095874,1751878326938,-1436.76,0.000218,2]
[370095875,1751878326947,-460.0,0.000218,2]
[370095876,1751878326957,-744.3,0.000218,2]
[370095877,1751878326966,-1626.87,0.00021801,2]
[370095878,1751878326976,-1041.83,0.00021801,2]
[370095879,1751878326985,-460.0,0.00021801,2]
[370095880,1751878326994,-1219.94,0.00021801,2]
[370095881,1751878327005,-11783.72,0.00021801,2]
[370095882,1751878327015,-516.28,0.00021801,2]
[370095883,1751878327025,-1126.4,0.00021801,2]
[370095884,1751878327034,-3083.89,0.00021801,2]
[370095885,1751878327044,-746.91,0.00021801,2]
[370095886,1751878327055,-460.0,0.00021801,2]
[370095887,1751878327065,-1051.67,0.00021801,2]
[370095888,1751878327075,-7880.90807545,0.00021809,2]
[370095889,1751878327086,-223.72,0.0002181,2]
[370095890,1751878327096,-1680.07552712,0.00021866,6]
[370095891,1751878327106,-467.28,0.000219,2]
[370095892,1751878327116,-151.0,0.000219,2]
[370095893,1751878327126,-1466.61,0.000219,2]
[370095894,1751878327137,-1693.65,0.000219,2]
[370095895,1751878327147,-511.73,0.000219,2]
[370095896,1751878327157,-5131.36,0.000219,2]
[370095897,1751878327169,-927.78,0.000219,2]
[370095898,1751878327178,-2375.1,0.000219,2]
[370095899,1751878327189,-4148.36,0.000219,2]
[370095900,1751878327199,-460.0,0.000219,2]
[370095901,1751878327208,-1006.41,0.000219,2]
[370095902,1751878327219,-9521.95,0.000219,2]
[370095903,1751878327229,-2677.89,0.000219,2]
[370095904,1751878327238,-927.92,0.000219,2]
[370095905,1751878327248,-460.0,0.00021901,2]
[370095906,1751878327258,-652.73,0.00021901,2]
[370095907,1751878327268,-460.0,0.00021901,2]
[370095908,1751878327277,-460.0,0.00021901,2]
[370095909,1751878327287,-590.05,0.00021901,2]
[370095910,1751878327297,-642.41,0.00021901,2]
[370095911,1751878327306,-1814.25,0.00021901,2]
[370095912,1751878327316,-780.98,0.00021901,2]
[370095913,1751878327326,-739.46,0.00021901,2]
[370095914,1751878327336,-1473.58,0.00021901,2]
[370095915,1751878327345,-460.0,0.00021901,2]
[370095916,1751878327356,-537.97,0.00021901,2]
[370095917,1751878327366,-474.52,0.00021901,2]
[370095918,1751878327376,-515.18,0.00021901,2]
[370095919,1751878327386,-463.45,0.00021901,2]
[370095920,1751878327395,-569.19,0.00021901,2]
[370095921,1751878327405,-474.81,0.00021901,2]
[370095922,1751878327415,-590.63,0.00021901,2]
[370095923,1751878327425,-517.21,0.00021901,2]
[370095924,1751878327434,-600.59,0.00021901,2]
[370095925,1751878327444,-460.14,0.00021901,2]
[370095926,1751878327453,-460.0,0.00021901,2]
[370095927,1751878327464,-190.6115,0.00021901,2]
[370095928,1751878327473,-190.6115,0.00021901,2]
[370095929,1751878327482,-460.0,0.00021901,2]
[370095930,1751878327493,-463.884223,0.00021901,2]
[370095931,1751878327502,-503.25,0.00021901,2]
[370095932,1751878327512,-463.884219,0.00021901,2]
[370095933,1751878327521,-1790.38,0.00021901,2]
[370095934,1751878327531,-309.444679,0.00021901,2]
[370095935,1751878327541,-416.12891452,0.00021901,2]
[370095936,1751878327551,-1020.84,0.00021901,2]
[370095937,1751878327560,-309.444687,0.00021901,2]
[370095938,1751878327570,-628.75,0.00021901,2]
[370095939,1751878327579,-724.26,0.00021901,2]
[370095940,1751878327589,-599.29,0.00021901,2]
[370095941,1751878327599,-618.64,0.00021901,2]
[370095942,1751878327609,-736.7,0.00021901,2]
[370095943,1751878327618,-513.26,0.00021901,2]
[370095944,1751878327628,-2101.7,0.00021901,2]
[370095945,1751878327638,-701.27,0.00021901,2]
[370095946,1751878327647,-501.61,0.00021901,2]
[370095947,1751878327657,-621.18,0.00021901,2]
[370095948,1751878327667,-460.0,0.00021901,2]
[370095949,1751878327677,-1588.08,0.00021901,2]
[370095950,1751878327686,-169.70623844,0.00021901,2]
[370095951,1751878327696,-1502.2,0.00021901,2]
[370095952,1751878327705,-603.3,0.00021901,2]
[370095953,1751878327715,-645.22,0.00021901,2]
[370095954,1751878327724,-528.10220109,0.00021901,2]
[370095955,1751878327734,-460.0,0.00021901,2]
[370095956,1751878327744,-802.16,0.00021901,2]
[370095957,1751878327754,-460.0,0.00021901,2]
[370095958,1751878327763,-582.95,0.00021901,2]
[370095959,1751878327773,-460.0,0.00021901,2]
[370095960,1751878327782,-518.66,0.00021901,2]
[370095961,1751878327792,-461.06,0.00021901,2]
[370095962,1751878327801,-882.2,0.00021901,2]
[370095963,1751878327811,-579.0,0.00021901,2]
[370095964,1751878327820,-460.0,0.00021901,2]
[370095965,1751878327835,-466.33,0.00021901,2]
[370095966,1751878327844,-811.29,0.00021901,2]
[370095967,1751878327853,-575.59,0.00021903,2]
[370095968,1751878327863,-151.0,0.00021906,2]
[370095969,1751878327874,-460.0,0.00021906,2]
[370095970,1751878327885,-579.14,0.00021906,2]
[370095971,1751878327896,-639.905489,0.00021906,2]
[370095972,1751878327906,-639.905489,0.00021906,2]
[370095973,1751878327917,-460.0,0.00021906,2]
[370095974,1751878327926,-1820.82,0.00021906,2]
[370095975,1751878327936,-460.0,0.00021906,2]
[370095976,1751878327945,-460.0,0.00021906,2]
[370095977,1751878327955,-697.17,0.00021906,2]
[370095978,1751878327965,-460.0,0.00021906,2]
[370095979,1751878327974,-584.48,0.00021906,2]
[370095980,1751878327984,-686.19,0.00021906,2]
[370095981,1751878327994,-460.0,0.00021906,2]
[370095982,1751878328003,-891.26,0.00021906,2]
[370095983,1751878328013,-597.07,0.00021906,2]